bitfinex-derivatives/quotes_ETHF0:USTF0_20220108
["timestamp","ask_amount","ask_price","bid_price","bid_amount"]
[1641671220184,0.82275336,3012.2,3012.1,1.5]
[1641671220383,0.82275336,3012.2,3012.1,1.302757]
[1641671220582,0.82275336,3012.3,3012.1,1.302757]
[1641671220785,0.82275336,3012.3,3012.1,1.966157]
[1641671221385,0.82275336,3012.3,3012.2,2.00479]
[1641671222185,0.82275336,3012.4,3012.2,2.00479]
[1641671222388,1.60985334,3013.1,3012.3,16.40197]
[1641671222589,1.60985334,3013.1,3012.4,0.08298]
[1641671222788,1.60985334,3013.1,3012.3,14.32298]
[1641671223187,1.60985334,3013.1,3012.3,15.9819518]
[1641671223387,0.70686049,3013.2,3013.0,2.00479]
[1641671223590,0.70686049,3013.2,3013.1,0.640787]
[1641671223889,0.52996711,3013.4,3013.1,0.640787]
[1641671224489,1.61753585,3013.7,3013.1,0.640787]
[1641671224689,2.00079983,3013.9,3013.2,0.08296]
[1641671224887,3.41761326,3014.4,3013.2,0.08296]
[1641671225090,3.41761326,3014.4,3013.6,1.65822629]
[1641671225289,3.41761326,3014.4,3013.7,0.08294]
[1641671225489,5.78441264,3014.6,3014.3,2.00479]
[1641671225689,2.02503805,3014.6,3014.3,2.00479]
[1641671225888,1.5,3014.5,3014.3,2.00479]
[1641671226088,0.66197,3014.4,3013.3,0.08293]
[1641671226290,1.5,3013.7,3012.9,0.08294]
[1641671226588,0.66197,3013.6,3012.2,0.08296]
[1641671226789,1.5,3013.0,3012.2,0.08296]
[1641671226989,1.5,3013.9,3012.1,0.6634]
[1641671226990,1.5,3012.9,3012.1,0.6634]
[1641671227186,0.66197,3012.8,3012.1,0.6634]
[1641671227391,2.00479,3012.5,3012.1,0.6634]
[1641671227592,2.00479,3012.5,3012.2,0.640787]
[1641671228792,2.00479,3012.8,3012.2,0.640787]
[1641671229092,33.9556,3013.8,3012.3,0.08298]
[1641671229392,2.00479,3013.4,3012.7,2.00479]
[1641671229593,0.66197,3013.3,3012.7,2.00479]
[1641671229792,1.5,3013.1,3012.7,2.00479]
[1641671229992,2.00479,3013.4,3012.7,2.00479]
[1641671231093,2.66676,3013.4,3012.7,2.00479]
[1641671231295,1.5,3013.2,3012.7,2.00479]
[1641671231493,0.640787,3013.3,3012.7,2.00479]
[1641671231695,1.302757,3013.3,3012.7,2.00479]
[1641671231895,0.66197,3013.3,3012.7,2.00479]
[1641671233099,2.00479,3013.4,3012.7,2.00479]
[1641671234098,1.62133262,3014.2,3013.0,1.65854532]
[1641671234299,1.62133262,3014.2,3013.3,1.65838304]
[1641671234499,1.62133262,3014.2,3013.4,0.08294]
[1641671234699,0.66197,3014.1,3013.5,0.640787]
[1641671235501,0.66197,3014.1,3013.7,2.00479]
[1641671236300,2.00479,3014.4,3013.7,2.00479]
[1641671236500,2.00479,3014.7,3013.8,0.08294]
[1641671236901,2.00479,3014.7,3013.8,14.32294]
[1641671237100,2.00479,3014.7,3013.8,0.08294]
[1641671237302,3.12133262,3014.9,3013.8,0.08294]
[1641671237502,3.12133262,3014.9,3014.5,2.00479]
[1641671237701,3.12133262,3014.9,3014.6,0.640787]
[1641671237904,2.28330262,3014.9,3014.6,0.640787]
[1641671238201,1.5,3014.8,3014.6,0.640787]
[1641671238903,1.5,3014.8,3013.8,0.08294]
[1641671239100,0.66197,3014.9,3013.8,0.08294]
[1641671239301,1.5,3014.7,3013.8,0.08294]
[1641671239501,1.5,3014.7,3014.1,2.00479]
[1641671239700,1.5,3014.7,3014.2,0.640787]
[1641671240201,2.00479,3014.8,3014.2,0.640787]
[1641671240401,2.00479,3014.8,3014.3,0.08293]
[1641671240903,2.00479,3014.8,3014.2,12.70349609]
[1641671241103,2.00279,3014.8,3014.3,0.08293]
[1641671241304,2.00279,3014.8,3014.2,0.08293]
[1641671242704,2.00479,3015.3,3014.2,0.08293]
[1641671243004,1.62133262,3015.9,3014.7,1.65760509]
[1641671243207,1.62133262,3015.9,3014.4,1.65778371]
[1641671243208,1.62133262,3015.9,3015.2,1.65738256]
[1641671243405,0.8107277,3015.3,3014.9,14.24]
[1641671243603,2.77e-05,3015.3,3015.0,0.0829]
[1641671243805,1.62133262,3015.9,3015.0,0.0829]
[1641671244204,1.5,3015.6,3013.9,0.0829]
[1641671244405,1.5,3015.0,3013.6,0.08291]
[1641671245212,1.5,3014.4,3013.6,0.08291]
[1641671245408,1.302757,3014.3,3013.9,2.00479]
[1641671245610,1.5,3014.0,3013.9,2.00479]
[1641671247012,0.66197,3014.1,3013.9,2.00479]
[1641671247213,0.66197,3014.2,3013.9,2.00479]
[1641671247512,1.5,3014.4,3013.9,2.00479]
[1641671247712,1.5,3014.4,3014.0,0.08294]
[1641671247911,1.5,3014.4,3013.9,2.00479]
[1641671248316,0.66197,3014.4,3013.9,2.00479]
[1641671248613,1.5,3014.0,3013.6,2.00479]
[1641671248814,1.5,3013.7,3013.6,2.00479]
[1641671249013,1.5,3013.7,3011.9,0.08294]
[1641671249213,1.5,3013.7,3011.8,35.19244]
[1641671249413,0.66197,3013.6,3013.3,2.00479]
[1641671250018,0.66197,3013.6,3013.0,2.00479]
[1641671250416,2.14507097,3013.6,3013.0,2.00479]
[1641671250615,2.14507097,3013.6,3012.2,0.08294]
[1641671250819,0.6944,3013.4,3011.9,0.08294]
[1641671251015,1.5,3012.0,3010.9,0.08298]
[1641671251215,1.5,3011.8,3010.9,0.08298]
[1641671251417,2.00479,3012.5,3011.6,2.00479]
[1641671251620,1.5,3012.6,3011.7,0.08298]
[1641671251824,2.00479,3012.8,3011.7,0.08298]
[1641671252223,1.5,3012.0,3011.6,2.00479]
[1641671252517,3.731057,3012.0,3011.6,2.00479]
[1641671253120,2.231057,3012.0,3011.6,2.00479]
[1641671255622,1.5,3011.7,3011.0,0.083]
[1641671255823,1.5,3011.1,3010.2,34.2744]
[1641671256023,2.16197,3011.6,3009.9,1.74331839]
[1641671256024,14.24,3011.5,3009.9,1.74331839]
[1641671256223,1.5,3010.9,3009.9,0.08303]
[1641671256420,1.5,3011.3,3009.8,1.11763815]
[1641671256621,1.5,3011.0,3009.9,1.66025531]
[1641671256826,1.5,3011.2,3009.9,1.66025531]
[1641671257025,1.5,3011.2,3010.0,0.08304]
[1641671257221,32.9413,3011.9,3010.4,1.66000452]
[1641671257424,1.5,3011.6,3010.5,0.08301]
[1641671257622,1.5,3011.6,3011.1,2.00479]
[1641671257821,1.5,3011.2,3011.1,2.00479]
[1641671258023,1.5,3011.2,3010.8,2.00479]
[1641671258221,1.5,3011.1,3010.8,2.00479]
[1641671258423,2.16197,3011.1,3010.8,2.00479]
[1641671258623,1.5,3011.3,3010.8,2.00479]
[1641671258824,1.5,3010.9,3010.8,2.00479]
[1641671259522,2.00479,3011.3,3010.8,2.00479]
[1641671260124,1.5,3011.1,3010.8,2.00479]
[1641671260422,0.08303,3012.0,3011.0,1.5]
[1641671260621,0.08303,3012.0,3011.9,1.5]
[1641671260825,0.083,3013.0,3011.9,1.41657]
[1641671261027,1.62617948,3013.1,3011.9,1.41657]
[1641671261622,1.62617948,3013.1,3012.5,2.00479]
[1641671261623,0.98216771,3013.0,3012.5,2.00479]
[1641671261822,2.28492471,3013.0,3012.5,9e-05]
[1641671262022,1.65983644,3012.9,3012.2,2.00479]
[1641671262422,0.66197,3012.8,3012.2,2.00479]
[1641671263026,0.66197,3012.8,3012.2,2.66676]
[1641671263223,0.66197,3012.8,3012.2,3.307547]
[1641671263626,2.00479,3012.7,3012.2,3.307547]
[1641671264223,0.640787,3013.0,3012.2,16.80606875]
[1641671264823,0.640787,3013.0,3012.2,2.56606875]
[1641671265623,0.640787,3013.0,3012.8,2.00479]
[1641671266123,0.81247236,3013.3,3012.9,0.640787]
[1641671266326,0.81247236,3013.3,3012.9,14.880787]
[1641671266522,0.81247236,3013.3,3013.0,0.66197]
[1641671266724,0.81247236,3013.4,3013.0,14.90197]
[1641671266925,0.81247236,3013.4,3013.2,1.65865536]
[1641671267126,0.81247236,3013.4,3013.3,0.66197]
[1641671267325,0.81247236,3013.4,3013.3,1.59447]
[1641671267526,0.81247236,3013.4,3013.3,19.49784659]
[1641671267727,1.62617948,3014.1,3013.3,19.49784659]
[1641671267927,1.62617948,3014.1,3013.4,0.08294]
[1641671268126,1.62617948,3014.1,3013.5,14.90197]
[1641671268327,2.71029913,3014.5,3013.7,14.24]
[1641671268527,2.00479,3014.6,3013.7,14.32294]
[1641671268726,2.00479,3014.6,3013.7,0.08294]
[1641671269527,2.00479,3014.6,3014.2,2.00479]
[1641671269728,1.302757,3014.5,3014.2,2.00479]
[1641671270030,2.00479,3014.6,3014.2,2.00479]
[1641671270327,2.00479,3014.6,3014.2,2.645577]
[1641671270528,2.00479,3014.6,3014.3,0.66197]
[1641671271128,1.62617948,3015.3,3014.3,14.90197]
[1641671271329,1.62617948,3015.3,3014.3,0.74488]
[1641671271531,1.62617948,3015.3,3014.8,2.00479]
[1641671271729,1.302757,3015.2,3014.8,2.00479]
[1641671271930,1.302757,3015.2,3014.8,2.66676]
[1641671272330,1.62617948,3015.4,3014.8,2.66676]
[1641671272532,1.62617948,3015.4,3015.3,1.65748695]
[1641671272729,1.62417948,3015.4,3015.3,16.55945695]
[1641671273131,4.74302348,3015.8,3015.3,16.55945695]
[1641671273330,1.63407392,3015.6,3015.3,14.48996514]
[1641671273530,1.63407392,3015.6,3015.5,4.00958]
[1641671273730,1.63407392,3015.6,3015.5,18.45807514]
[1641671274131,2.03272435,3015.8,3015.5,18.45807514]
[1641671274330,2.71029913,3016.1,3015.7,13.82799514]
[1641671274531,0.92629913,3016.1,3015.8,0.08289]
[1641671274732,0.92629913,3016.1,3016.0,15.48492458]
[1641671275033,0.92629913,3016.1,3016.0,15.56779458]
[1641671275234,0.70636074,3016.7,3016.0,15.56779458]
[1641671275433,0.70636074,3016.7,3016.2,13.82799514]
[1641671275633,1.34714774,3016.7,3016.6,4.00958]
[1641671275833,1.34714774,3016.7,3016.6,2.00479]
[1641671276034,1.34714774,3016.7,3014.8,0.08287]
[1641671276235,1.5,3016.6,3015.2,1.65747871]
[1641671276436,1.65779195,3016.4,3014.7,1.65779195]
[1641671276636,1.65779195,3016.4,3014.8,0.0829]
[1641671276835,0.6944,3016.4,3014.8,0.0829]
[1641671277037,0.0829,3016.6,3014.4,0.0829]
[1641671277238,0.0829,3016.6,3015.2,1.65749794]
[1641671277435,0.640787,3016.7,3015.3,14.32289]
[1641671277637,0.640787,3016.7,3016.2,2.00479]
[1641671277837,1.302757,3016.7,3016.2,2.00479]
[1641671278939,1.5,3016.3,3015.8,2.00479]
[1641671279141,1.5,3016.1,3014.7,0.08287]
[1641671279339,1.5829,3016.1,3014.1,0.0829]
[1641671279542,2.00479,3015.1,3014.4,2.00479]
[1641671279740,1.302757,3015.0,3014.1,0.0829]
[1641671279940,1.302757,3015.0,3013.6,1.11763815]
[1641671280141,4.46129682,3015.0,3013.6,15.35763815]
[1641671280340,3.65569682,3015.0,3013.6,15.35763815]
[1641671280546,2.96129682,3015.0,3014.0,1.5]
[1641671280744,2.00479,3015.4,3014.7,1.65779195]
[1641671280945,2.00479,3015.4,3014.8,0.66197]
[1641671281644,0.6944,3016.4,3015.3,1.5]
[1641671281842,0.6944,3016.4,3014.9,14.880787]
[1641671281843,0.08289,3017.3,3016.0,14.24]
[1641671282043,34.73402051,3017.4,3016.1,0.08287]
[1641671282243,0.640787,3016.8,3016.2,0.66197]
[1641671282444,1.302757,3016.8,3016.0,14.24]
[1641671282644,1.5,3016.6,3015.8,0.08287]
[1641671282844,0.66197,3016.5,3015.2,1.65750069]
[1641671283243,1.65777821,3016.4,3014.9,0.08287]
[1641671283443,1.5,3016.2,3014.8,0.0829]
[1641671283643,1.5,3016.2,3014.7,3.66256821]
[1641671283644,2.00479,3015.3,3014.7,2.08769]
[1641671283845,1.5,3014.9,3013.7,15.63704768]
[1641671284043,1.6584188,3015.2,3014.0,1.11763815]
[1641671284844,3.20687885,3015.3,3014.0,1.11763815]
[1641671285447,3.20687885,3015.3,3013.7,14.24]
[1641671285645,2.00479,3014.4,3013.7,14.24]
[1641671285845,2.00479,3014.4,3013.8,15.542757]
[1641671286048,2.66676,3014.4,3013.8,15.542757]
[1641671286848,2.140787,3014.3,3013.4,0.08294]
[1641671287047,1.5,3014.0,3013.0,1.65868012]
[1641671287648,2.00479,3013.1,3012.5,1.11763815]
[1641671287849,2.66676,3013.1,3012.5,0.66197]
[1641671288650,2.66676,3013.1,3012.5,1.302757]
[1641671288852,0.640787,3013.0,3012.5,1.302757]
[1641671290150,0.640787,3013.0,3011.9,0.08298]
[1641671290151,1.5,3012.8,3011.9,0.08298]
[1641671290351,0.640787,3013.0,3011.4,5.414]
[1641671290352,1.5,3012.6,3011.4,5.414]
[1641671290753,2.4579,3012.8,3011.4,5.414]
[1641671291052,0.9579,3012.8,3011.1,0.08298]
[1641671291252,0.9579,3012.8,3011.3,1.5]
[1641671291452,2.00479,3013.1,3011.4,14.32298]
[1641671291652,2.00479,3012.7,3012.0,2.00479]
[1641671291852,1.302757,3012.6,3012.0,2.00479]
[1641671292055,1.302757,3012.6,3012.1,0.640787]
[1641671292254,0.66197,3012.6,3012.1,0.640787]
[1641671292653,2.00479,3012.7,3012.2,0.66197]
[1641671293054,2.66676,3012.7,3012.1,0.640787]
[1641671293656,2.00479,3012.2,3011.6,1.65948387]
[1641671293860,2.00479,3012.2,3011.6,16.56145387]
[1641671294256,2.00479,3012.2,3011.8,14.24]
[1641671294457,2.00479,3012.2,3011.9,0.66197]
[1641671294860,2.66676,3012.2,3011.7,0.640787]
[1641671295057,2.66676,3012.2,3011.7,1.302757]
[1641671295858,2.00479,3012.2,3011.7,2.802757]
[1641671296059,69.20379769,3013.8,3011.8,0.083]
[1641671296261,2.47390897,3013.8,3012.1,1.65921128]
[1641671296460,2.47390897,3013.8,3012.2,0.08297]
[1641671296659,0.81469769,3013.5,3012.2,14.32297]
[1641671297059,0.81469769,3013.5,3012.2,0.08297]
[1641671297658,2.81948769,3013.5,3012.8,2.00479]
[1641671297860,1.302757,3013.4,3012.8,2.00479]
[1641671298260,1.302757,3013.4,3012.8,2.645577]
[1641671299262,1.302757,3013.4,3012.8,3.307547]
[1641671299665,1.302757,3013.4,3012.8,2.645577]
[1641671299966,1.302757,3013.4,3012.8,2.00479]
[1641671300364,1.302757,3013.4,3012.5,2.00479]
[1641671300562,2.1944,3013.2,3011.8,14.24]
[1641671300764,0.6944,3013.2,3011.8,14.24]
[1641671301366,1.5,3013.3,3011.1,0.08298]
[1641671301565,1.5,3012.2,3011.1,0.08298]
[1641671301766,2.00479,3011.6,3010.9,2.00479]
[1641671302066,0.66197,3011.5,3010.9,2.00479]
[1641671302667,0.66197,3011.5,3010.3,1.66019467]
[1641671302868,0.08303,3011.4,3010.3,1.66019467]
[1641671303068,0.08303,3011.4,3010.1,1.11763815]
[1641671303268,1.58303,3011.4,3009.5,19.654]
[1641671303667,2.00479,3010.1,3009.5,19.654]
[1641671303869,0.640787,3010.0,3009.6,0.66197]
[1641671304070,0.640787,3010.0,3009.6,1.302757]
[1641671304270,0.640787,3010.0,3009.5,5.414]
[1641671304469,0.66197,3009.9,3009.5,5.414]
[1641671305071,0.66197,3009.9,3009.2,1.66081782]
[1641671305670,2.00479,3009.6,3009.2,1.66081782]
[1641671305870,0.66197,3009.5,3009.2,1.66081782]
[1641671306072,0.66197,3009.5,3009.1,2.645577]
[1641671306470,0.66197,3009.5,3009.1,2.00479]
[1641671306670,0.66197,3009.5,3009.2,1.66081782]
[1641671307569,0.66197,3009.5,3008.7,0.08307]
[1641671307773,0.66197,3009.5,3008.3,2.00479]
[1641671308773,4.00958,3009.6,3009.1,1.5]
[1641671308972,0.08307,3010.7,3009.5,14.24]
[1641671309171,0.08305,3011.4,3009.8,14.24]
[1641671309370,0.08305,3011.4,3009.6,0.08305]
[1641671309572,0.08305,3011.4,3009.2,0.08304]
[1641671309772,2.00479,3010.4,3009.7,2.00479]
[1641671309972,1.302757,3010.3,3009.7,2.00479]
[1641671310172,1.302757,3010.3,3009.7,2.66676]
[1641671310873,2.00479,3010.4,3009.8,2.140787]
[1641671311073,0.08305,3011.4,3010.3,1.5]
[1641671311272,0.5827,3011.5,3010.0,0.08303]
[1641671311472,0.5827,3011.5,3010.6,1.66000176]
[1641671311871,0.5827,3011.5,3010.9,2.00479]
[1641671312072,1.302757,3011.4,3010.6,3.66479176]
[1641671312274,1.302757,3011.4,3010.7,0.66197]
[1641671313676,0.5827,3011.5,3010.8,0.640787]
[1641671313875,0.5827,3011.5,3011.2,1.5]
[1641671314077,0.08301,3013.1,3011.3,0.08301]
[1641671314477,0.81469769,3013.2,3010.9,0.08298]
[1641671314677,0.81469769,3013.2,3011.1,14.24]
[1641671314977,0.81469769,3013.2,3012.0,1.65925257]
[1641671315584,0.81469769,3013.2,3011.2,0.08298]
[1641671315877,2.00479,3013.0,3012.3,2.00479]
[1641671316079,1.302757,3012.9,3012.3,2.00479]
[1641671316279,1.302757,3012.9,3012.0,2.00479]
[1641671316479,1.5,3012.5,3010.7,0.08298]
[1641671316779,0.08301,3012.4,3010.4,14.24]
[1641671316979,0.08301,3012.7,3010.3,1.5]
[1641671317179,0.08301,3012.8,3010.2,0.08301]
[1641671317379,1.5,3011.8,3010.2,0.08301]
[1641671317580,1.5,3011.8,3010.1,0.08301]
[1641671317779,2.00479,3011.2,3010.5,2.00479]
[1641671318079,1.302757,3011.1,3009.7,1.66051446]
[1641671318281,1.385797,3011.1,3009.2,35.94094]
[1641671318479,1.385797,3011.1,3009.2,0.08304]
[1641671318679,1.32842936,3011.0,3009.4,1.5]
[1641671318879,1.32842936,3011.0,3009.2,0.08304]
[1641671319779,2.00479,3010.2,3009.8,1.5]
[1641671319979,0.640787,3011.1,3010.0,15.74]
[1641671320179,0.640787,3011.1,3009.9,1.302757]
[1641671320180,0.640787,3011.1,3010.1,1.66029942]
[1641671320784,1.66029942,3011.8,3010.2,1.5]
[1641671320983,0.08304,3012.1,3010.3,14.24]
[1641671321186,0.89770769,3012.2,3010.4,0.08301]
[1641671321385,0.89770769,3012.7,3010.4,0.08301]
[1641671321582,1.5,3012.5,3010.4,0.08301]
[1641671321783,2.00479,3011.6,3010.9,2.00479]
[1641671322084,0.640787,3011.5,3011.0,0.66197]
[1641671322284,1.302757,3011.5,3011.0,0.66197]
[1641671322486,1.302757,3011.5,3010.9,2.00479]
[1641671322682,1.302757,3011.5,3010.7,1.65997696]
[1641671323086,1.66051998,3011.4,3010.6,2.00479]
[1641671323286,0.66197,3011.3,3010.6,2.00479]
[1641671323784,2.00479,3011.0,3010.6,2.00479]
[1641671323984,0.66197,3010.9,3010.6,2.00479]
[1641671324483,1.302757,3010.9,3010.6,2.00479]
[1641671325282,0.66197,3010.9,3010.6,2.00479]
[1641671325484,0.66197,3010.9,3010.6,2.66676]
[1641671325984,2.00479,3011.0,3010.6,2.66676]
[1641671326183,2.66676,3011.0,3010.6,2.66676]
[1641671326583,3.307547,3011.0,3010.6,2.66676]
[1641671327883,2.645577,3011.0,3010.6,2.66676]
[1641671328586,3.307547,3011.0,3010.6,2.66676]
[1641671329084,2.00479,3011.6,3010.6,2.66676]
[1641671329385,0.08301,3012.6,3010.6,16.90676]
[1641671329584,0.08301,3012.8,3010.6,16.90676]
[1641671329786,2.00479,3012.0,3011.3,2.00479]
[1641671329986,1.302757,3011.9,3011.3,2.00479]
[1641671330788,1.302757,3011.9,3010.6,16.24479]
[1641671330989,1.302757,3011.9,3010.6,2.00479]
[1641671331389,1.302757,3011.9,3008.8,36.91586447]
[1641671331390,1.5,3011.4,3010.2,1.66023326]
[1641671331588,0.08303,3011.3,3009.4,0.08301]
[1641671331788,2.00479,3010.4,3009.6,2.00479]
[1641671331988,0.66197,3010.3,3009.8,2.96322183]
[1641671332588,1.302757,3010.3,3009.3,2.08784]
[1641671332788,1.302757,3010.3,3008.9,34.46025]
[1641671332987,1.302757,3010.3,3009.1,1.66085092]
[1641671333588,1.302757,3010.3,3008.9,1.66096954]
[1641671333791,2.00479,3009.5,3008.9,1.66096954]
[1641671333989,2.00479,3009.5,3009.0,1.302757]
[1641671334689,3.307547,3009.5,3009.0,0.640787]
[1641671334989,3.307547,3009.5,3008.9,1.66096954]
[1641671336691,4.066947,3009.5,3008.9,1.66096954]
[1641671337090,4.066947,3009.5,3009.0,1.302757]
[1641671337290,4.066947,3009.5,3009.0,0.640787]
[1641671338091,4.066947,3009.5,3008.9,2.32293954]
[1641671338692,4.066947,3009.5,3008.9,1.66096954]
[1641671338894,1.5,3009.4,3007.8,68.97967946]
[1641671339097,1.5,3009.2,3007.8,1.66157946]
[1641671339392,1.58308,3009.4,3007.8,1.66157946]
[1641671339593,1.58308,3009.4,3007.5,14.32308]
[1641671339792,1.58308,3009.4,3007.7,2.00479]
[1641671339992,2.00479,3008.4,3007.7,3.66644125]
[1641671340192,2.00479,3008.4,3007.8,1.302757]
[1641671340193,2.66676,3008.4,3007.8,1.302757]
[1641671342193,2.00479,3008.4,3007.8,1.302757]
[1641671342394,2.00479,3008.4,3007.9,14.24]
[1641671342594,2.00479,3008.4,3008.0,0.66197]
[1641671342795,2.66676,3008.4,3008.0,0.66197]
[1641671343394,2.00479,3008.4,3008.0,0.66197]
[1641671343595,2.00479,3008.4,3008.0,2.32344732]
[1641671343795,2.00479,3008.7,3008.0,16.56344732]
[1641671343995,2.00479,3009.1,3008.6,1.66105231]
[1641671344197,1.66122339,3010.1,3008.7,15.542757]
[1641671344398,1.66122339,3010.1,3008.7,1.302757]
[1641671345696,1.5,3009.9,3008.5,0.08307]
[1641671345895,2.00479,3008.6,3008.3,1.66128687]
[1641671346097,2.00479,3008.6,3008.3,2.32325687]
[1641671346297,2.00479,3008.6,3008.3,2.96404387]
[1641671347499,3.307547,3008.6,3008.3,2.32325687]
[1641671347899,2.66676,3008.6,3008.3,2.32325687]
[1641671348300,2.66676,3008.6,3008.3,2.96404387]
[1641671348499,2.66676,3008.6,3008.3,2.32325687]
[1641671349100,2.00479,3008.6,3008.3,2.32325687]
[1641671350302,2.00479,3008.6,3008.4,0.640787]
[1641671350502,2.00479,3008.6,3008.5,0.66197]
[1641671350703,2.00479,3008.6,3008.3,1.66128687]
[1641671350901,2.00479,3008.6,3007.5,0.08308]
[1641671351203,2.00479,3008.6,3007.6,1.66167886]
[1641671351401,2.82659,3008.6,3007.6,1.66167886]
[1641671351602,2.82659,3008.6,3007.5,1.11763815]
[1641671352302,2.82659,3008.6,3007.3,17.9066235]
[1641671352905,2.00479,3008.6,3007.4,14.24]
[1641671353104,2.00479,3008.6,3007.5,0.08309]
[1641671353305,2.00479,3008.6,3007.4,14.24]
[1641671353506,2.00479,3008.6,3007.5,0.08309]
[1641671353705,2.00479,3008.6,3007.8,14.24]
[1641671353907,2.00479,3008.6,3008.0,14.24]
[1641671354511,2.00479,3008.6,3008.3,1.66128687]
[1641671355009,2.00479,3008.6,3008.3,2.32325687]
[1641671357012,0.08308,3009.8,3008.3,2.32325687]
[1641671357013,0.08308,3009.8,3008.6,14.24]
[1641671357214,35.7363,3010.5,3009.0,15.74]
[1641671357411,0.81469769,3010.2,3009.0,14.24]
[1641671357618,0.81469769,3010.2,3009.0,15.74]
[1641671357812,0.81469769,3010.2,3009.1,0.08305]
[1641671358012,2.81948769,3010.2,3009.5,2.00479]
[1641671358213,1.302757,3010.1,3009.6,0.66197]
[1641671358514,1.39436831,3010.0,3009.2,2.00479]
[1641671358715,0.66197,3009.9,3007.9,1.5]
[1641671358914,0.66197,3009.9,3008.0,0.08308]
[1641671359115,1.5,3009.5,3008.0,0.08308]
[1641671359316,0.08308,3009.4,3008.1,1.66139175]
[1641671359520,1.60149144,3009.3,3008.0,1.11763815]
[1641671360018,2.00479,3008.6,3008.0,1.11763815]
[1641671360216,0.640787,3008.5,3008.1,0.640787]
[1641671360816,0.640787,3008.5,3008.1,0.66197]
[1641671361017,0.640787,3008.5,3007.9,2.00479]
[1641671361216,0.66197,3008.4,3007.9,2.00479]
[1641671361617,0.66197,3008.4,3007.9,2.66676]
[1641671362218,0.66197,3008.4,3007.9,2.00479]
[1641671362419,0.66197,3008.4,3007.9,2.66676]
[1641671363823,0.66197,3008.4,3007.9,2.00479]
[1641671364023,0.66197,3008.4,3007.9,2.66676]
[1641671364324,0.640787,3008.5,3007.9,3.307547]
[1641671364924,0.640787,3008.5,3007.9,2.66676]
[1641671365527,1.302757,3008.5,3007.9,2.66676]
[1641671365925,1.5,3008.4,3007.6,2.00479]
[1641671366126,1.302757,3008.5,3006.0,2.79631477]
[1641671366127,2.00479,3007.9,3007.0,2.00479]
[1641671366327,3.667223,3007.9,3007.0,2.00479]
[1641671366528,2.00479,3007.9,3007.0,2.00479]
[1641671367030,1.5,3007.5,3006.7,3.40183768]
[1641671367229,1.385877,3007.4,3006.7,3.40183768]
[1641671367829,1.385877,3007.4,3006.9,1.77960815]
[1641671368029,2.00479,3007.1,3006.9,1.302757]
[1641671368229,2.00479,3007.1,3006.9,0.66197]
[1641671369029,2.00479,3007.1,3006.7,2.00479]
[1641671369229,2.00479,3007.1,3006.1,3.66715944]
[1641671369230,0.66197,3007.0,3006.2,1.66247999]
[1641671369632,0.66197,3007.0,3006.1,2.00479]
[1641671370634,1.5,3006.9,3005.5,1.11763815]
[1641671371036,1.5,3006.9,3005.5,1.66286149]
[1641671371235,0.7831,3007.0,3005.5,1.66286149]
[1641671372034,2.00479,3006.0,3005.5,1.66286149]
[1641671372236,2.00479,3006.0,3005.6,1.302757]
[1641671372634,35.0423,3007.4,3005.9,1.66264583]
[1641671372835,2.47717768,3007.9,3005.9,1.66264583]
[1641671373035,0.08314,3007.7,3005.9,1.66264583]
[1641671373236,35.70671042,3007.8,3005.9,1.66264583]
[1641671373434,37.20671042,3007.8,3005.7,0.08314]
[1641671373636,0.08314,3007.7,3005.7,0.08314]
[1641671373936,1.74573055,3007.7,3006.0,1.66259055]
[1641671374149,2.00479,3007.1,3006.4,2.00479]
[1641671374336,0.640787,3007.0,3006.5,0.66197]
[1641671374739,0.640787,3007.0,3006.5,1.302757]
[1641671374940,1.529287,3007.0,3006.5,0.66197]
[1641671375138,0.8885,3007.0,3006.5,0.66197]
[1641671375337,71.0729,3008.2,3006.5,0.66197]
[1641671375539,35.9958,3008.2,3006.6,0.08312]
[1641671375738,1.66251592,3007.8,3006.4,2.00479]
[1641671375940,0.08312,3007.7,3006.4,2.00479]
[1641671376139,2.00479,3007.1,3006.4,2.00479]
[1641671376339,0.640787,3007.0,3006.5,0.66197]
[1641671376539,0.640787,3007.0,3006.5,1.302757]
[1641671376940,2.00479,3007.4,3006.5,1.302757]
[1641671377342,2.00479,3007.4,3006.5,2.96506288]
[1641671377541,2.00479,3007.4,3006.5,1.302757]
[1641671377741,2.00479,3007.4,3006.6,1.66224233]
[1641671377942,0.66197,3007.3,3006.5,0.640787]
[1641671378143,0.66197,3007.3,3007.0,2.00479]
[1641671378444,1.302757,3007.3,3007.0,2.00479]
[1641671378842,0.640787,3007.3,3007.0,2.00479]
[1641671380044,1.302757,3007.3,3007.0,2.00479]
[1641671380845,0.640787,3007.3,3007.1,0.66197]
[1641671381046,2.00479,3007.4,3007.1,0.66197]
[1641671381646,2.66676,3007.4,3007.0,2.00479]
[1641671383648,2.66676,3007.4,3006.4,2.00479]
[1641671384051,1.65555177,3007.3,3006.4,2.00479]
[1641671384950,4.00958,3007.4,3006.4,2.00479]
[1641671385348,0.08314,3008.1,3006.7,14.24]
[1641671385649,0.81469769,3008.5,3007.0,1.66202684]
[1641671385850,0.81469769,3008.5,3007.5,1.66176446]
[1641671386048,2.00479,3008.2,3007.5,1.66176446]
[1641671386249,2.00479,3008.2,3007.6,1.302757]
[1641671387249,0.640787,3008.1,3007.6,1.302757]
[1641671387749,2.00479,3008.2,3007.6,1.302757]
[1641671387947,2.00479,3008.5,3007.6,2.802757]
[1641671388149,2.00479,3009.0,3008.0,2.00479]
[1641671388648,0.81469769,3009.3,3008.2,1.66137519]
[1641671388848,0.81469769,3009.5,3008.3,14.24]